[Event "MČR juniorů a juniorek v rapid šachu 2023"]
[Site "Czech Republic"]
[Date "2023.09.23"]
[Round "5.19"]
[White "Stastna, Martina"]
[Black "Boff, Ondrej"]
[Result "1-0"]
[TimeControl "20 min + 5 sec per move"]
[WhiteFideId "385123"]
[BlackFideId "23733950"]
[WhiteElo "1725"]
[BlackElo "1486"]

1. e4 {[%clk 00:20:08]} {[%emt 00:00:01]} c5 {[%clk 00:20:07]} {[%emt
00:00:03]} 2. Nf3 {[%clk 00:20:10]} {[%emt 00:00:03]} Nc6 {[%clk 00:20:08]}
{[%emt 00:00:04]} 3. Bb5 {[%clk 00:20:10]} {[%emt 00:00:05]} e6 {[%clk
00:20:10]} {[%emt 00:00:03]} 4. Bxc6 {[%clk 00:20:12]} {[%emt 00:00:03]} bxc6
{[%clk 00:20:12]} {[%emt 00:00:02]} 5. e5 {[%clk 00:20:04]} {[%emt 00:00:13]}
Ne7 {[%clk 00:20:07]} {[%emt 00:00:10]} 6. d3 {[%clk 00:19:30]} {[%emt
00:00:39]} Nf5 {[%clk 00:19:38]} {[%emt 00:00:33]} 7. O-O {[%clk 00:17:56]}
{[%emt 00:01:39]} Be7 {[%clk 00:19:34]} {[%emt 00:00:08]} 8. Nc3 {[%clk
00:17:43]} {[%emt 00:00:19]} O-O {[%clk 00:19:29]} {[%emt 00:00:10]} 9. Ne4
{[%clk 00:17:21]} {[%emt 00:00:27]} f6 {[%clk 00:19:17]} {[%emt 00:00:17]} 10.
b3 {[%clk 00:16:05]} {[%emt 00:01:21]} fxe5 {[%clk 00:18:38]} {[%emt 00:00:43]}
11. Nxe5 {[%clk 00:16:05]} {[%emt 00:00:06]} Qc7 {[%clk 00:17:48]} {[%emt
00:00:54]} 12. Nf3 {[%clk 00:14:45]} {[%emt 00:01:26]} d5 {[%clk 00:17:31]}
{[%emt 00:00:21]} 13. Ng3 {[%clk 00:13:54]} {[%emt 00:00:56]} Nxg3 {[%clk
00:16:56]} {[%emt 00:00:40]} 14. hxg3 {[%clk 00:13:43]} {[%emt 00:00:17]} Bf6
{[%clk 00:16:53]} {[%emt 00:00:08]} 15. Rb1 {[%clk 00:13:31]} {[%emt 00:00:17]}
e5 {[%clk 00:15:47]} {[%emt 00:01:10]} 16. Nh2 {[%clk 00:11:07]} {[%emt
00:02:30]} Be6 {[%clk 00:15:11]} {[%emt 00:00:41]} 17. Re1 {[%clk 00:09:52]}
{[%emt 00:01:21]} Rae8 {[%clk 00:14:51]} {[%emt 00:00:24]} 18. a4 {[%clk
00:09:26]} {[%emt 00:00:32]} Qd7 {[%clk 00:14:13]} {[%emt 00:00:42]} 19. Ba3
{[%clk 00:09:07]} {[%emt 00:00:24]} Be7 {[%clk 00:13:20]} {[%emt 00:00:57]} 20.
Rxe5 {[%clk 00:08:39]} {[%emt 00:00:34]} Bd6 {[%clk 00:13:23]} {[%emt
00:00:02]} 21. Re3 {[%clk 00:08:07]} {[%emt 00:00:37]} Rf6 {[%clk 00:13:05]}
{[%emt 00:00:23]} 22. Nf3 {[%clk 00:07:05]} {[%emt 00:01:07]} Ref8 {[%clk
00:12:23]} {[%emt 00:00:47]} 23. Ne5 {[%clk 00:04:41]} {[%emt 00:02:29]} Bxe5
{[%clk 00:11:48]} {[%emt 00:00:40]} 24. Rxe5 {[%clk 00:04:44]} {[%emt
00:00:02]} Rxf2 {[%clk 00:11:37]} {[%emt 00:00:16]} 25. Bxc5 {[%clk 00:04:43]}
{[%emt 00:00:07]} Bg4 {[%clk 00:11:09]} {[%emt 00:00:32]} 26. Qe1 {[%clk
00:04:14]} {[%emt 00:00:34]} Rf1+ {[%clk 00:09:34]} {[%emt 00:01:40]} 27. Qxf1
{[%clk 00:04:18]} Rxf1+ {[%clk 00:09:36]} {[%emt 00:00:04]} 28. Rxf1 {[%clk
00:04:22]} h6 {[%clk 00:09:22]} {[%emt 00:00:19]} 29. Rf8+ {[%clk 00:04:08]}
{[%emt 00:00:19]} Kh7 {[%clk 00:09:19]} {[%emt 00:00:08]} 30. Re7 {[%clk
00:04:08]} {[%emt 00:00:05]} 1-0

[Event "MČR juniorů a juniorek v rapid šachu 2023"]
[Site "Czech Republic"]
[Date "2023.09.23"]
[Round "5.20"]
[White "Dudkova, Josefina"]
[Black "Zadrapa, Jakub"]
[Result "0-1"]
[TimeControl "20 min + 5 sec per move"]
[WhiteFideId "23712350"]
[BlackFideId "23714778"]
[WhiteElo "1437"]
[BlackElo "1696"]

1. d4 {[%clk 00:20:08]} {[%emt 00:00:01]} Nf6 {[%clk 00:20:07]} {[%emt
00:00:03]} 2. Bf4 {[%clk 00:20:11]} {[%emt 00:00:02]} d5 {[%clk 00:20:11]}
{[%emt 00:00:01]} 3. Nf3 {[%clk 00:20:14]} {[%emt 00:00:02]} c5 {[%clk
00:20:12]} {[%emt 00:00:05]} 4. e3 {[%clk 00:20:16]} {[%emt 00:00:02]} Nc6
{[%clk 00:20:16]} {[%emt 00:00:02]} 5. c3 {[%clk 00:20:14]} {[%emt 00:00:07]}
Qb6 {[%clk 00:20:18]} {[%emt 00:00:02]} 6. dxc5 {[%clk 00:19:34]} {[%emt
00:00:45]} Qxb2 {[%clk 00:19:28]} {[%emt 00:00:55]} 7. Nbd2 {[%clk 00:18:56]}
{[%emt 00:00:43]} Qxc3 {[%clk 00:18:28]} {[%emt 00:01:05]} 8. Rc1 {[%clk
00:18:27]} {[%emt 00:00:34]} Qa5 {[%clk 00:18:10]} {[%emt 00:00:24]} 9. Qb3
{[%clk 00:14:52]} {[%emt 00:03:39]} e6 {[%clk 00:17:41]} {[%emt 00:00:35]} 10.
Bb5 {[%clk 00:12:10]} {[%emt 00:02:47]} Be7 {[%clk 00:15:34]} {[%emt 00:02:12]}
11. Ne5 {[%clk 00:10:59]} {[%emt 00:01:16]} Bd7 {[%clk 00:14:04]} {[%emt
00:01:36]} 12. Nxd7 {[%clk 00:09:30]} {[%emt 00:01:34]} Nxd7 {[%clk 00:13:40]}
{[%emt 00:00:29]} 13. Bxc6 {[%clk 00:09:08]} {[%emt 00:00:27]} bxc6 {[%clk
00:13:41]} {[%emt 00:00:04]} 14. Qb7 {[%clk 00:08:48]} {[%emt 00:00:25]} Qd8
{[%clk 00:13:22]} {[%emt 00:00:23]} 15. Qxc6 {[%clk 00:07:20]} {[%emt
00:01:33]} Rc8 {[%clk 00:12:33]} {[%emt 00:00:55]} 16. Qb7 {[%clk 00:06:26]}
{[%emt 00:00:59]} Nxc5 {[%clk 00:11:35]} {[%emt 00:01:02]} 17. Qb5+ {[%clk
00:04:45]} {[%emt 00:01:46]} Qd7 {[%clk 00:11:36]} {[%emt 00:00:04]} 18. Qxd7+
{[%clk 00:04:24]} {[%emt 00:00:26]} Kxd7 {[%clk 00:11:39]} {[%emt 00:00:02]} 19.
Ke2 {[%clk 00:04:21]} {[%emt 00:00:08]} Rc6 {[%clk 00:11:16]} {[%emt 00:00:28]}
20. Nb3 {[%clk 00:03:38]} {[%emt 00:00:49]} Nxb3 {[%clk 00:11:03]} {[%emt
00:00:18]} 21. axb3 {[%clk 00:03:42]} Rhc8 {[%clk 00:11:01]} {[%emt 00:00:05]}
22. Ra1 {[%clk 00:03:20]} {[%emt 00:00:28]} a6 {[%clk 00:10:28]} {[%emt
00:00:38]} 23. Ra4 {[%clk 00:02:45]} {[%emt 00:00:41]} Bf6 {[%clk 00:09:47]}
{[%emt 00:00:46]} 24. Rb1 {[%clk 00:02:42]} {[%emt 00:00:08]} Rb6 {[%clk
00:09:06]} {[%emt 00:00:46]} 25. b4 {[%clk 00:02:01]} {[%emt 00:00:45]} Rc4
{[%clk 00:08:52]} {[%emt 00:00:19]} 26. Rb3 {[%clk 00:01:27]} {[%emt 00:00:39]}
Kc6 {[%clk 00:07:36]} {[%emt 00:01:21]} 27. Kd3 {[%clk 00:01:18]} {[%emt
00:00:15]} Kb7 {[%clk 00:06:58]} {[%emt 00:00:43]} 28. e4 {[%clk 00:00:59]}
{[%emt 00:00:23]} Be7 {[%clk 00:05:44]} {[%emt 00:01:19]} 29. Be3 {[%clk
00:00:31]} {[%emt 00:00:33]} Rbxb4 {[%clk 00:05:36]} {[%emt 00:00:13]} 30.
Raxb4+ {[%clk 00:00:15]} {[%emt 00:00:21]} Rxb4 {[%clk 00:05:39]} {[%emt
00:00:02]} 31. Rc3 {[%clk 00:00:12]} {[%emt 00:00:08]} dxe4+ {[%clk 00:05:23]}
{[%emt 00:00:21]} 32. Ke2 {[%clk 00:00:06]} {[%emt 00:00:10]} Rb2+ {[%clk
00:05:17]} {[%emt 00:00:13]} 33. Kd1 {[%clk 00:00:10]} {[%emt 00:00:01]} Bd6
{[%clk 00:04:21]} {[%emt 00:01:00]} 0-1

[Event "MČR juniorů a juniorek v rapid šachu 2023"]
[Site "Czech Republic"]
[Date "2023.09.23"]
[Round "5.21"]
[White "Jun, Rostislav"]
[Black "Hosova, Sandra"]
[Result "0-1"]
[TimeControl "20 min + 5 sec per move"]
[WhiteFideId "23719524"]
[BlackFideId "397717"]
[WhiteElo "1317"]
[BlackElo "1682"]

1. e4 {[%clk 00:20:07]} {[%emt 00:00:02]} c5 {[%clk 00:20:08]} {[%emt
00:00:03]} 2. Nf3 {[%clk 00:20:09]} {[%emt 00:00:03]} Nc6 {[%clk 00:20:11]}
{[%emt 00:00:02]} 3. d4 {[%clk 00:20:13]} {[%emt 00:00:01]} cxd4 {[%clk
00:20:14]} {[%emt 00:00:02]} 4. Nxd4 {[%clk 00:20:16]} {[%emt 00:00:01]} g6
{[%clk 00:20:18]} {[%emt 00:00:02]} 5. Nc3 {[%clk 00:20:18]} {[%emt 00:00:03]}
Bg7 {[%clk 00:20:21]} {[%emt 00:00:02]} 6. Be3 {[%clk 00:20:19]} {[%emt
00:00:03]} Nf6 {[%clk 00:20:25]} {[%emt 00:00:02]} 7. Be2 {[%clk 00:20:16]}
{[%emt 00:00:08]} O-O {[%clk 00:20:22]} {[%emt 00:00:08]} 8. O-O {[%clk
00:20:18]} {[%emt 00:00:03]} d5 {[%clk 00:20:22]} {[%emt 00:00:05]} 9. exd5
{[%clk 00:19:58]} {[%emt 00:00:25]} Nxd5 {[%clk 00:20:18]} {[%emt 00:00:09]} 10.
Rb1 {[%clk 00:19:06]} {[%emt 00:00:57]} Nxe3 {[%clk 00:19:38]} {[%emt
00:00:45]} 11. Nxc6 {[%clk 00:18:54]} {[%emt 00:00:18]} Nxd1 {[%clk 00:19:03]}
{[%emt 00:00:39]} 12. Nxd8 {[%clk 00:18:56]} {[%emt 00:00:03]} Nxc3 {[%clk
00:19:04]} {[%emt 00:00:05]} 13. bxc3 {[%clk 00:18:48]} {[%emt 00:00:13]} Rxd8
{[%clk 00:19:03]} {[%emt 00:00:06]} 14. Bf3 {[%clk 00:18:49]} {[%emt 00:00:04]}
Rb8 {[%clk 00:18:33]} {[%emt 00:00:35]} 15. c4 {[%clk 00:18:47]} {[%emt
00:00:07]} Be6 {[%clk 00:16:22]} {[%emt 00:02:15]} 16. Rfe1 {[%clk 00:18:05]}
{[%emt 00:00:47]} Rd7 {[%clk 00:15:11]} {[%emt 00:01:16]} 17. Be2 {[%clk
00:17:36]} {[%emt 00:00:35]} Rc8 {[%clk 00:14:54]} {[%emt 00:00:22]} 18. Red1
{[%clk 00:16:46]} {[%emt 00:00:55]} Rcd8 {[%clk 00:14:00]} {[%emt 00:00:59]} 19.
Rxd7 {[%clk 00:16:38]} {[%emt 00:00:12]} Rxd7 {[%clk 00:14:03]} {[%emt
00:00:01]} 20. h3 {[%clk 00:16:32]} {[%emt 00:00:12]} b6 {[%clk 00:13:49]}
{[%emt 00:00:19]} 21. Kf1 {[%clk 00:15:52]} {[%emt 00:00:45]} Bf5 {[%clk
00:09:37]} {[%emt 00:04:16]} 22. Rd1 {[%clk 00:14:06]} {[%emt 00:01:51]} Rxd1+
{[%clk 00:09:25]} {[%emt 00:00:18]} 23. Bxd1 {[%clk 00:14:10]} Kf8 {[%clk
00:09:15]} {[%emt 00:00:14]} 24. Ke2 {[%clk 00:14:09]} {[%emt 00:00:06]} Bh6
{[%clk 00:09:17]} {[%emt 00:00:03]} 25. f3 {[%clk 00:14:09]} {[%emt 00:00:05]}
Ke8 {[%clk 00:09:15]} {[%emt 00:00:08]} 26. g4 {[%clk 00:14:11]} {[%emt
00:00:03]} Be6 {[%clk 00:09:14]} {[%emt 00:00:05]} 27. Kd3 {[%clk 00:14:15]}
{[%emt 00:00:02]} Kd7 {[%clk 00:09:04]} {[%emt 00:00:15]} 28. Be2 {[%clk
00:14:09]} {[%emt 00:00:10]} Kd6 {[%clk 00:08:53]} {[%emt 00:00:16]} 0-1

[Event "MČR juniorů a juniorek v rapid šachu 2023"]
[Site "Czech Republic"]
[Date "2023.09.23"]
[Round "5.22"]
[White "Pejrimovsky, Tadeas Rubel"]
[Black "Cinkova, Vicky"]
[Result "1-0"]
[TimeControl "20 min + 5 sec per move"]
[WhiteFideId "23709537"]
[BlackFideId "23725826"]
[WhiteElo "1679"]
[BlackElo "1300"]

1. e4 {[%clk 00:20:08]} {[%emt 00:00:01]} c5 {[%clk 00:20:09]} {[%emt
00:00:01]} 2. Nf3 {[%clk 00:19:58]} {[%emt 00:00:14]} Nc6 {[%clk 00:20:13]}
{[%emt 00:00:02]} 3. Nc3 {[%clk 00:20:01]} {[%emt 00:00:02]} g6 {[%clk
00:20:16]} {[%emt 00:00:02]} 4. d4 {[%clk 00:20:01]} {[%emt 00:00:04]} cxd4
{[%clk 00:20:20]} {[%emt 00:00:02]} 5. Nxd4 {[%clk 00:20:04]} {[%emt 00:00:01]}
Bg7 {[%clk 00:20:25]} 6. Be3 {[%clk 00:20:03]} {[%emt 00:00:07]} Nf6 {[%clk
00:19:16]} {[%emt 00:01:13]} 7. f3 {[%clk 00:20:06]} {[%emt 00:00:03]} d5
{[%clk 00:19:11]} {[%emt 00:00:11]} 8. Bb5 {[%clk 00:17:03]} {[%emt 00:03:07]}
Bd7 {[%clk 00:12:53]} {[%emt 00:06:23]} 9. exd5 {[%clk 00:16:38]} {[%emt
00:00:30]} Nb4 {[%clk 00:12:34]} {[%emt 00:00:25]} 10. Bc4 {[%clk 00:15:09]}
{[%emt 00:01:33]} a6 {[%clk 00:11:11]} {[%emt 00:01:29]} 11. a3 {[%clk
00:14:04]} {[%emt 00:01:10]} Nbxd5 {[%clk 00:09:23]} {[%emt 00:01:53]} 12. Nxd5
{[%clk 00:13:48]} {[%emt 00:00:20]} Nxd5 {[%clk 00:09:15]} {[%emt 00:00:14]} 13.
Bxd5 {[%clk 00:13:49]} {[%emt 00:00:04]} Qa5+ {[%clk 00:09:19]} {[%emt
00:00:01]} 14. c3 {[%clk 00:12:24]} {[%emt 00:01:30]} Qxd5 {[%clk 00:09:11]}
{[%emt 00:00:13]} 15. O-O {[%clk 00:12:26]} {[%emt 00:00:02]} Qc4 {[%clk
00:07:52]} {[%emt 00:01:24]} 16. Re1 {[%clk 00:10:40]} {[%emt 00:01:50]} O-O
{[%clk 00:06:34]} {[%emt 00:01:23]} 17. Qb3 {[%clk 00:10:01]} {[%emt 00:00:45]}
Qc7 {[%clk 00:05:00]} {[%emt 00:01:38]} 18. Bf2 {[%clk 00:08:17]} {[%emt
00:01:49]} e6 {[%clk 00:04:44]} {[%emt 00:00:22]} 19. Bg3 {[%clk 00:08:04]}
{[%emt 00:00:17]} Qc5 {[%clk 00:03:54]} {[%emt 00:00:56]} 20. Bf2 {[%clk
00:07:25]} {[%emt 00:00:43]} Qe7 {[%clk 00:03:51]} {[%emt 00:00:09]} 21. Rad1
{[%clk 00:07:18]} {[%emt 00:00:12]} Rfd8 {[%clk 00:03:43]} {[%emt 00:00:12]} 22.
Re2 {[%clk 00:05:41]} {[%emt 00:01:42]} Qe8 {[%clk 00:01:24]} {[%emt 00:02:25]}
23. Qxb7 {[%clk 00:04:34]} {[%emt 00:01:12]} Bxd4 {[%clk 00:00:29]} {[%emt
00:01:01]} 24. cxd4 {[%clk 00:02:13]} {[%emt 00:02:26]} Bc6 {[%clk 00:00:19]}
{[%emt 00:00:15]} 25. Qc7 {[%clk 00:01:39]} {[%emt 00:00:38]} 1-0

[Event "MČR juniorů a juniorek v rapid šachu 2023"]
[Site "Czech Republic"]
[Date "2023.09.23"]
[Round "5.23"]
[White "Tegda, Vojtech"]
[Black "Tvaroh, Vitezslav"]
[Result "1-0"]
[TimeControl "20 min + 5 sec per move"]
[WhiteFideId "23723424"]
[BlackFideId "23704209"]
[WhiteElo "1959"]
[BlackElo "1303"]

1. e4 {[%clk 00:20:08]} {[%emt 00:00:01]} c5 {[%clk 00:19:57]} {[%emt
00:00:13]} 2. c4 {[%clk 00:20:11]} {[%emt 00:00:02]} g6 {[%clk 00:19:48]}
{[%emt 00:00:15]} 3. Ne2 {[%clk 00:20:05]} {[%emt 00:00:11]} Bg7 {[%clk
00:19:44]} {[%emt 00:00:08]} 4. d4 {[%clk 00:19:53]} {[%emt 00:00:17]} cxd4
{[%clk 00:19:42]} {[%emt 00:00:08]} 5. Nxd4 {[%clk 00:19:56]} {[%emt 00:00:01]}
d6 {[%clk 00:19:33]} {[%emt 00:00:14]} 6. Nc3 {[%clk 00:19:44]} {[%emt
00:00:17]} Nf6 {[%clk 00:19:25]} {[%emt 00:00:14]} 7. f3 {[%clk 00:19:44]}
{[%emt 00:00:05]} Bd7 {[%clk 00:19:15]} {[%emt 00:00:15]} 8. Be3 {[%clk
00:19:44]} {[%emt 00:00:04]} Nc6 {[%clk 00:19:15]} {[%emt 00:00:07]} 9. Qd2
{[%clk 00:19:46]} {[%emt 00:00:02]} a6 {[%clk 00:18:48]} {[%emt 00:00:33]} 10.
Be2 {[%clk 00:19:41]} {[%emt 00:00:08]} O-O {[%clk 00:17:56]} {[%emt 00:00:58]}
11. O-O {[%clk 00:19:39]} {[%emt 00:00:07]} Nxd4 {[%clk 00:17:33]} {[%emt
00:00:28]} 12. Bxd4 {[%clk 00:19:41]} {[%emt 00:00:03]} Qa5 {[%clk 00:17:08]}
{[%emt 00:00:31]} 13. Rfd1 {[%clk 00:18:49]} {[%emt 00:00:57]} Rfc8 {[%clk
00:16:39]} {[%emt 00:00:35]} 14. Qe3 {[%clk 00:15:53]} {[%emt 00:03:00]} Qh5
{[%clk 00:14:56]} {[%emt 00:01:48]} 15. Rac1 {[%clk 00:15:06]} {[%emt
00:00:51]} Bh6 {[%clk 00:14:48]} {[%emt 00:00:13]} 16. f4 {[%clk 00:14:40]}
{[%emt 00:00:32]} Bg4 {[%clk 00:13:29]} {[%emt 00:01:24]} 17. Bxf6 {[%clk
00:13:31]} {[%emt 00:01:13]} Bxe2 {[%clk 00:12:24]} {[%emt 00:01:10]} 18. Qxe2
{[%clk 00:12:52]} {[%emt 00:00:43]} Qxe2 {[%clk 00:10:29]} {[%emt 00:02:02]} 19.
Nxe2 {[%clk 00:12:56]} {[%emt 00:00:01]} exf6 {[%clk 00:10:32]} {[%emt
00:00:02]} 20. Rxd6 {[%clk 00:12:17]} {[%emt 00:00:29]} Re8 21. Rd4 {[%emt
00:01:03]} f5 {[%emt 00:00:13]} 22. e5 {[%clk 00:12:07]} {[%emt 00:00:03]} f6
{[%clk 00:10:00]} {[%emt 00:00:03]} 23. Rcd1 {[%clk 00:11:31]} {[%emt
00:00:40]} fxe5 {[%clk 00:09:57]} {[%emt 00:00:08]} 24. fxe5 {[%clk 00:11:35]}
{[%emt 00:00:02]} Be3+ {[%clk 00:10:00]} {[%emt 00:00:01]} 25. Kf1 {[%clk
00:11:31]} {[%emt 00:00:09]} Bxd4 {[%clk 00:10:04]} {[%emt 00:00:02]} 26. Nxd4
{[%clk 00:11:22]} {[%emt 00:00:14]} Rad8 {[%clk 00:10:03]} {[%emt 00:00:06]} 27.
e6 {[%clk 00:10:47]} {[%emt 00:00:40]} Kg7 {[%clk 00:09:41]} {[%emt 00:00:27]}
28. Ke2 {[%clk 00:10:37]} {[%emt 00:00:14]} Kf6 {[%clk 00:09:26]} {[%emt
00:00:20]} 29. b4 {[%clk 00:10:23]} {[%emt 00:00:19]} Rd6 {[%clk 00:09:17]}
{[%emt 00:00:14]} 30. c5 {[%clk 00:09:52]} {[%emt 00:00:36]} Rd5 {[%clk
00:08:41]} {[%emt 00:00:41]} 31. Kd3 {[%clk 00:08:25]} {[%emt 00:01:32]} Rdd8
{[%clk 00:07:11]} {[%emt 00:01:35]} 32. Kc4 {[%clk 00:08:18]} {[%emt 00:00:12]}
h5 {[%clk 00:06:01]} {[%emt 00:01:15]} 33. Re1 {[%clk 00:08:10]} {[%emt
00:00:13]} Re7 {[%clk 00:05:06]} {[%emt 00:01:00]} 34. a4 {[%clk 00:07:45]}
{[%emt 00:00:31]} g5 {[%clk 00:04:59]} {[%emt 00:00:12]} 35. b5 {[%clk
00:07:37]} {[%emt 00:00:13]} axb5+ {[%clk 00:04:50]} {[%emt 00:00:14]} 36. axb5
{[%clk 00:07:40]} {[%emt 00:00:01]} Ra8 {[%clk 00:04:22]} {[%emt 00:00:34]} 37.
c6 {[%clk 00:07:18]} {[%emt 00:00:27]} bxc6 {[%clk 00:04:12]} {[%emt 00:00:15]}
38. Nxc6 {[%clk 00:06:13]} {[%emt 00:01:09]} Rxe6 {[%clk 00:04:07]} {[%emt
00:00:10]} 39. Rxe6+ {[%clk 00:06:17]} {[%emt 00:00:02]} Kxe6 {[%clk 00:04:10]}
{[%emt 00:00:02]} 40. b6 {[%clk 00:06:21]} Ra1 {[%clk 00:03:22]} {[%emt
00:00:53]} 41. b7 {[%clk 00:06:12]} {[%emt 00:00:14]} Rc1+ {[%clk 00:03:22]}
{[%emt 00:00:05]} 42. Kd3 {[%clk 00:05:57]} {[%emt 00:00:20]} Rb1 {[%clk
00:02:57]} {[%emt 00:00:31]} 43. b8=Q Rxb8 44. Nxb8 {[%clk 00:05:55]} {[%emt
00:00:04]} Ke5 {[%clk 00:02:58]} {[%emt 00:00:04]} 45. Nc6+ {[%clk 00:05:44]}
{[%emt 00:00:16]} Kf4 {[%clk 00:03:01]} {[%emt 00:00:01]} 46. Ne7 {[%clk
00:05:35]} {[%emt 00:00:14]} g4 {[%clk 00:02:49]} {[%emt 00:00:18]} 47. g3+
{[%clk 00:05:27]} {[%emt 00:00:14]} Kg5 {[%clk 00:02:50]} {[%emt 00:00:04]} 48.
Ke3 {[%clk 00:05:30]} {[%emt 00:00:02]} Kf6 {[%clk 00:02:43]} {[%emt 00:00:12]}
49. Nd5+ {[%clk 00:05:25]} {[%emt 00:00:09]} Ke5 {[%clk 00:02:43]} {[%emt
00:00:05]} 50. Nf4 {[%clk 00:05:24]} {[%emt 00:00:07]} h4 {[%clk 00:02:26]}
{[%emt 00:00:21]} 51. Ng6+ {[%clk 00:04:59]} {[%emt 00:00:28]} Kf6 {[%clk
00:02:29]} {[%emt 00:00:04]} 52. Nxh4 {[%clk 00:05:03]} {[%emt 00:00:02]} Kg5
{[%clk 00:02:29]} {[%emt 00:00:05]} 53. Ng2 {[%clk 00:05:05]} {[%emt 00:00:02]}
Kf6 {[%clk 00:02:32]} {[%emt 00:00:03]} 54. Kf4 {[%clk 00:05:09]} Kg6 {[%clk
00:02:35]} {[%emt 00:00:02]} 55. Ne3 {[%clk 00:05:13]} 1-0

[Event "MČR juniorů a juniorek v rapid šachu 2023"]
[Site "Czech Republic"]
[Date "2023.09.23"]
[Round "5.24"]
[White "Jun, Robert"]
[Black "Strnadova, Monika"]
[Result "0-1"]
[TimeControl "20 min + 5 sec per move"]
[WhiteFideId "23709510"]
[BlackFideId "23701668"]
[WhiteElo "1340"]
[BlackElo "1728"]

1. e4 {[%clk 00:20:09]} c5 {[%clk 00:20:10]} 2. Nf3 {[%clk 00:20:12]} {[%emt
00:00:03]} Nc6 {[%clk 00:20:14]} 3. c3 {[%clk 00:20:16]} e5 {[%clk 00:20:18]}
{[%emt 00:00:02]} 4. d4 {[%clk 00:20:19]} {[%emt 00:00:02]} cxd4 {[%clk
00:20:21]} {[%emt 00:00:01]} 5. cxd4 {[%clk 00:20:23]} exd4 {[%clk 00:20:24]}
{[%emt 00:00:02]} 6. Nxd4 {[%clk 00:20:27]} Nf6 {[%clk 00:20:16]} {[%emt
00:00:14]} 7. Nc3 {[%clk 00:20:31]} Bb4 {[%clk 00:20:19]} {[%emt 00:00:02]} 8.
Nxc6 {[%clk 00:20:15]} {[%emt 00:00:21]} bxc6 {[%clk 00:20:14]} {[%emt
00:00:10]} 9. Bd3 {[%clk 00:20:16]} {[%emt 00:00:05]} O-O {[%clk 00:20:14]}
{[%emt 00:00:05]} 10. a3 {[%clk 00:20:15]} {[%emt 00:00:05]} Bxc3+ {[%clk
00:19:56]} {[%emt 00:00:23]} 11. bxc3 {[%clk 00:20:19]} {[%emt 00:00:02]} Re8
{[%clk 00:19:59]} {[%emt 00:00:02]} 12. f3 {[%clk 00:20:20]} {[%emt 00:00:03]}
d5 {[%clk 00:19:51]} {[%emt 00:00:13]} 13. Bg5 {[%clk 00:20:07]} {[%emt
00:00:18]} Qd6 {[%clk 00:19:28]} {[%emt 00:00:29]} 14. Bxf6 {[%clk 00:19:14]}
{[%emt 00:00:59]} Qxf6 {[%clk 00:19:31]} {[%emt 00:00:02]} 15. Qc2 {[%clk
00:19:12]} {[%emt 00:00:07]} dxe4 {[%clk 00:19:16]} {[%emt 00:00:20]} 16. Bxe4
{[%clk 00:19:11]} {[%emt 00:00:06]} Rb8 {[%clk 00:18:58]} {[%emt 00:00:24]} 17.
O-O {[%clk 00:18:59]} {[%emt 00:00:16]} h6 {[%clk 00:18:58]} {[%emt 00:00:05]}
18. Rab1 {[%clk 00:18:49]} {[%emt 00:00:16]} Ba6 {[%clk 00:18:55]} {[%emt
00:00:08]} 19. Rfd1 {[%clk 00:18:35]} {[%emt 00:00:15]} Rxb1 {[%clk 00:18:28]}
{[%emt 00:00:36]} 20. Rxb1 {[%clk 00:18:39]} {[%emt 00:00:01]} Qd6 {[%clk
00:18:31]} {[%emt 00:00:01]} 21. a4 {[%clk 00:18:07]} {[%emt 00:00:37]} Rd8
{[%clk 00:17:48]} {[%emt 00:00:48]} 22. Rb4 {[%clk 00:16:49]} {[%emt 00:01:22]}
Qc5+ {[%clk 00:17:10]} {[%emt 00:00:44]} 23. Kh1 {[%clk 00:16:41]} {[%emt
00:00:13]} Qxc3 {[%clk 00:16:26]} {[%emt 00:00:49]} 24. Rb1 {[%clk 00:15:09]}
{[%emt 00:01:37]} Qxc2 {[%clk 00:15:54]} {[%emt 00:00:37]} 25. Bxc2 {[%clk
00:15:12]} {[%emt 00:00:02]} Bd3 {[%clk 00:15:59]} 26. Rd1 {[%clk 00:15:02]}
{[%emt 00:00:15]} Bxc2 {[%clk 00:15:47]} {[%emt 00:00:17]} 27. Rxd8+ {[%clk
00:15:05]} {[%emt 00:00:02]} Kh7 {[%clk 00:15:50]} 28. a5 {[%clk 00:14:56]}
{[%emt 00:00:14]} a6 {[%clk 00:15:37]} {[%emt 00:00:19]} 29. Rd7 {[%clk
00:14:53]} {[%emt 00:00:08]} Kg8 {[%clk 00:15:34]} {[%emt 00:00:08]} 30. Kg1
{[%clk 00:14:43]} {[%emt 00:00:15]} Ba4 {[%clk 00:15:37]} {[%emt 00:00:02]} 31.
Kf2 {[%clk 00:14:41]} {[%emt 00:00:07]} f6 {[%clk 00:15:36]} {[%emt 00:00:06]}
32. Ke3 {[%clk 00:14:42]} {[%emt 00:00:04]} Kh7 {[%clk 00:15:40]} {[%emt
00:00:01]} 33. Kd4 {[%clk 00:14:35]} {[%emt 00:00:11]} c5+ {[%clk 00:15:38]}
{[%emt 00:00:09]} 34. Kxc5 {[%clk 00:14:35]} {[%emt 00:00:04]} Bxd7 {[%clk
00:15:41]} {[%emt 00:00:02]} 35. Kb6 {[%clk 00:14:39]} Bb5 {[%clk 00:15:45]}
{[%emt 00:00:01]} 36. g3 {[%clk 00:14:39]} {[%emt 00:00:05]} Kg6 {[%clk
00:15:49]} {[%emt 00:00:02]} 37. h4 {[%clk 00:14:43]} Kf5 {[%clk 00:15:53]}
{[%emt 00:00:01]} 38. Kc5 {[%clk 00:14:45]} {[%emt 00:00:03]} g5 {[%clk
00:15:52]} {[%emt 00:00:06]} 39. h5 {[%clk 00:14:39]} {[%emt 00:00:11]} g4
{[%clk 00:15:51]} {[%emt 00:00:06]} 40. f4 {[%clk 00:14:43]} Ke4 {[%clk
00:15:55]} {[%emt 00:00:02]} 41. Kd6 {[%clk 00:14:47]} {[%emt 00:00:01]} f5
{[%clk 00:15:36]} {[%emt 00:00:24]} 42. Ke6 {[%clk 00:14:48]} {[%emt 00:00:04]}
Bd3 {[%clk 00:15:40]} {[%emt 00:00:01]} 43. Kf6 {[%clk 00:14:51]} {[%emt
00:00:02]} Kf3 {[%clk 00:15:44]} 44. Kg6 {[%clk 00:14:55]} {[%emt 00:00:02]}
Kxg3 {[%clk 00:15:47]} {[%emt 00:00:01]} 45. Kxh6 {[%clk 00:14:59]} Kxf4 {[%clk
00:15:51]} {[%emt 00:00:02]} 46. Kg7 {[%clk 00:15:02]} g3 {[%clk 00:15:54]}
{[%emt 00:00:03]} 47. h6 {[%clk 00:15:05]} {[%emt 00:00:02]} g2 {[%clk
00:15:58]} 48. Kf7 {[%clk 00:15:05]} {[%emt 00:00:05]} g1=Q {[%clk 00:15:56]}
{[%emt 00:00:07]} 49. h7 {[%clk 00:15:09]} {[%emt 00:00:01]} Bc4+ {[%clk
00:16:00]} {[%emt 00:00:02]} 50. Kf6 {[%clk 00:15:10]} {[%emt 00:00:03]} Qg5#
{[%clk 00:15:57]} {[%emt 00:00:08]} 0-1